[Event "Early-Titled-Tuesday-Blitz-September-05-2023"]
[Site "Chess.com"]
[Date "2023.09.05"]
[Round "6"]
[White "Ginger_GM"]
[Black "zverr1"]
[Result "1-0"]
[WhiteElo "2605"]
[BlackElo "2481"]
[TimeControl "180+1"]
[EndTime "9:07:28 PDT"]
[Termination "Ginger_GM won by resignation"]

1. d4 {[%clk 0:03:00.9]} 1... Nf6 {[%clk 0:03:00.3]} 2. Nf3 {[%clk 0:02:59.2]}
2... g6 {[%clk 0:03:00.7]} 3. Nc3 {[%clk 0:02:56.9]} 3... d5 {[%clk 0:03:00.2]}
4. Bf4 {[%clk 0:02:56.4]} 4... c6 {[%clk 0:02:59.2]} 5. e3 {[%clk 0:02:50.5]}
5... Bf5 {[%clk 0:02:47.9]} 6. Be2 {[%clk 0:02:46.2]} 6... Bg7 {[%clk
0:02:41.1]} 7. h4 {[%clk 0:02:38.5]} 7... h6 {[%clk 0:02:36.3]} 8. Ne5 {[%clk
0:02:36.8]} 8... Nfd7 {[%clk 0:02:23.7]} 9. g4 {[%clk 0:02:34.8]} 9... Be6
{[%clk 0:02:21.8]} 10. Nd3 {[%clk 0:02:25.4]} 10... Na6 {[%clk 0:02:03.8]} 11.
Bf3 {[%clk 0:02:00.5]} 11... Nb6 {[%clk 0:01:54.2]} 12. Be5 {[%clk 0:01:51.9]}
12... O-O {[%clk 0:01:47.3]} 13. Bxg7 {[%clk 0:01:50]} 13... Kxg7 {[%clk
0:01:48.2]} 14. Qe2 {[%clk 0:01:28.9]} 14... Qd6 {[%clk 0:01:43.7]} 15. O-O-O
{[%clk 0:01:22.4]} 15... Nb4 {[%clk 0:01:41.8]} 16. Nf4 {[%clk 0:01:19.4]} 16...
Bd7 {[%clk 0:01:38.6]} 17. Kb1 {[%clk 0:01:15.7]} 17... e5 {[%clk 0:01:34.4]}
18. dxe5 {[%clk 0:01:14.8]} 18... Qxe5 {[%clk 0:01:35.3]} 19. h5 {[%clk
0:01:09.1]} 19... g5 {[%clk 0:01:33.9]} 20. Nd3 {[%clk 0:01:09.6]} 20... Nxd3
{[%clk 0:01:32.7]} 21. Qxd3 {[%clk 0:01:10.5]} 21... f5 {[%clk 0:01:27.1]} 22.
gxf5 {[%clk 0:01:02]} 22... Bxf5 {[%clk 0:01:28]} 23. e4 {[%clk 0:01:01.3]}
23... Bh7 {[%clk 0:01:25.1]} 24. Rhe1 {[%clk 0:00:58.3]} 24... d4 {[%clk
0:01:01]} 25. Ne2 {[%clk 0:00:54.4]} 25... c5 {[%clk 0:01:00.5]} 26. Ng3 {[%clk
0:00:53.6]} 26... c4 {[%clk 0:00:58.2]} 27. Qa3 {[%clk 0:00:53.7]} 27... c3
{[%clk 0:00:52.3]} 28. Nf5+ {[%clk 0:00:49.7]} 28... Kh8 {[%clk 0:00:43.4]} 29.
b3 {[%clk 0:00:48.9]} 29... Rad8 {[%clk 0:00:38.5]} 30. Bg4 {[%clk 0:00:47.1]}
30... a5 {[%clk 0:00:32.8]} 31. f3 {[%clk 0:00:40.2]} 31... Bxf5 {[%clk
0:00:29.1]} 32. Bxf5 {[%clk 0:00:40]} 32... Qd6 {[%clk 0:00:24]} 33. Qxd6 {[%clk
0:00:32.6]} 33... Rxd6 {[%clk 0:00:24.9]} 34. Bg4 {[%clk 0:00:29.4]} 34... Nd7
{[%clk 0:00:23.4]} 35. e5 {[%clk 0:00:29.1]} 35... Rd5 {[%clk 0:00:18.3]} 36. e6
{[%clk 0:00:27.4]} 36... Nf6 {[%clk 0:00:16.1]} 37. e7 {[%clk 0:00:27.8]} 37...
Re8 {[%clk 0:00:16]} 38. Be6 {[%clk 0:00:27.8]} 38... Rxe7 {[%clk 0:00:12]} 39.
Bxd5 {[%clk 0:00:27.5]} 39... Rxe1 {[%clk 0:00:12.8]} 40. Rxe1 {[%clk
0:00:27.6]} 40... Nxd5 {[%clk 0:00:13.7]} 41. Re4 {[%clk 0:00:25.5]} 41... Nf4
{[%clk 0:00:08.4]} 42. Rxd4 {[%clk 0:00:23.2]} 42... Nxh5 {[%clk 0:00:09]} 43.
Rd7 {[%clk 0:00:21.9]} 43... Nf4 {[%clk 0:00:08]} 44. Rxb7 {[%clk 0:00:21.7]}
44... h5 {[%clk 0:00:08.2]} 45. Re7 {[%clk 0:00:15]} 45... h4 {[%clk 0:00:07.3]}
46. Re1 {[%clk 0:00:10.7]} 46... h3 {[%clk 0:00:06.7]} 47. a3 {[%clk 0:00:11.1]}
47... Kg7 {[%clk 0:00:06.6]} 48. b4 {[%clk 0:00:11.2]} 48... axb4 {[%clk
0:00:07.5]} 49. axb4 {[%clk 0:00:11.2]} 49... Kf6 {[%clk 0:00:07]} 50. Ka2
{[%clk 0:00:11.1]} 50... Nd5 {[%clk 0:00:06.6]} 51. Kb3 {[%clk 0:00:11.5]} 51...
Kf5 {[%clk 0:00:07.5]} 52. b5 {[%clk 0:00:10.9]} 52... Kf4 {[%clk 0:00:07.7]}
53. Kc4 {[%clk 0:00:11.5]} 53... Nb6+ {[%clk 0:00:08]} 54. Kc5 {[%clk
0:00:12.1]} 54... Na4+ {[%clk 0:00:08.5]} 55. Kb4 {[%clk 0:00:12.2]} 55... Nb6
{[%clk 0:00:09.1]} 56. Rh1 {[%clk 0:00:09.6]} 56... Kg3 {[%clk 0:00:08.5]} 57.
Rg1+ {[%clk 0:00:09.9]} 57... Kxf3 {[%clk 0:00:07.6]} 58. Rxg5 {[%clk
0:00:10.1]} 58... h2 {[%clk 0:00:08.2]} 59. Rh5 {[%clk 0:00:10.6]} 59... Kg2
{[%clk 0:00:08.7]} 60. Kxc3 {[%clk 0:00:11]} 60... h1=Q {[%clk 0:00:08.2]} 61.
Rxh1 {[%clk 0:00:11.2]} 61... Kxh1 {[%clk 0:00:09.1]} 62. Kd4 {[%clk 0:00:11.7]}
62... Kg2 {[%clk 0:00:09.4]} 63. c4 {[%clk 0:00:12.2]} 63... Kf3 {[%clk
0:00:09]} 64. c5 {[%clk 0:00:12.7]} 64... Na4 {[%clk 0:00:08.9]} 65. b6 {[%clk
0:00:12.3]} 65... Nxc5 {[%clk 0:00:05.7]} 66. Kxc5 {[%clk 0:00:12]} 66... Ke4
{[%clk 0:00:05.7]} 67. b7 {[%clk 0:00:12.5]} 67... Kd3 {[%clk 0:00:06.6]} 68.
b8=Q {[%clk 0:00:12.2]} 68... Ke3 {[%clk 0:00:07.4]} 69. Qe5+ {[%clk 0:00:12.1]}
69... Kd3 {[%clk 0:00:08.3]} 70. Qf4 {[%clk 0:00:12.1]} 70... Kc2 {[%clk
0:00:08.8]} 71. Qe3 {[%clk 0:00:12.3]} 71... Kd1 {[%clk 0:00:09.7]} 72. Qf2
{[%clk 0:00:12.3]} 72... Kc1 {[%clk 0:00:10]} 73. Kb4 {[%clk 0:00:12.7]} 73...
Kd1 {[%clk 0:00:10.9]} 74. Kc3 {[%clk 0:00:12.8]} 74... Kc1 {[%clk 0:00:11.8]}
1-0

[Event "Early-Titled-Tuesday-Blitz-September-05-2023"]
[Site "Chess.com"]
[Date "2023.09.05"]
[Round "6"]
[White "Amirreza_p"]
[Black "Duong57"]
[Result "0-1"]
[WhiteElo "2601"]
[BlackElo "2503"]
[TimeControl "180+1"]
[EndTime "9:07:37 PDT"]
[Termination "Duong57 won on time"]

1. Nf3 {[%clk 0:03:00.9]} 1... d5 {[%clk 0:02:59.5]} 2. c4 {[%clk 0:02:59.3]}
2... e6 {[%clk 0:02:56.4]} 3. g3 {[%clk 0:02:57.9]} 3... c6 {[%clk 0:02:51.9]}
4. Bg2 {[%clk 0:02:57.4]} 4... Nf6 {[%clk 0:02:51.6]} 5. O-O {[%clk 0:02:57.5]}
5... Be7 {[%clk 0:02:51.3]} 6. d4 {[%clk 0:02:58.1]} 6... O-O {[%clk 0:02:51.1]}
7. Qc2 {[%clk 0:02:58.8]} 7... b6 {[%clk 0:02:48]} 8. Nbd2 {[%clk 0:02:58.9]}
8... Bb7 {[%clk 0:02:47.9]} 9. e4 {[%clk 0:02:59]} 9... Nbd7 {[%clk 0:02:45.3]}
10. Re1 {[%clk 0:02:55.9]} 10... Rc8 {[%clk 0:02:43.6]} 11. e5 {[%clk 0:02:54]}
11... Ne8 {[%clk 0:02:43.2]} 12. cxd5 {[%clk 0:02:46.9]} 12... cxd5 {[%clk
0:02:42.8]} 13. Qd3 {[%clk 0:02:45.9]} 13... Qc7 {[%clk 0:02:37.2]} 14. Nb3
{[%clk 0:02:25.3]} 14... Qc2 {[%clk 0:02:24.1]} 15. Bf1 {[%clk 0:02:21.1]} 15...
Qxd3 {[%clk 0:02:16.3]} 16. Bxd3 {[%clk 0:02:19.8]} 16... Nc7 {[%clk 0:02:12.4]}
17. Bd2 {[%clk 0:01:59.3]} 17... Ba6 {[%clk 0:02:11.4]} 18. Bxa6 {[%clk
0:01:57.3]} 18... Nxa6 {[%clk 0:02:12.3]} 19. Rec1 {[%clk 0:01:51.4]} 19... h6
{[%clk 0:01:31.4]} 20. a3 {[%clk 0:01:43.1]} 20... Rc4 {[%clk 0:01:27.5]} 21.
Rc3 {[%clk 0:01:36.5]} 21... Rfc8 {[%clk 0:01:25.8]} 22. Rac1 {[%clk 0:01:34.9]}
22... Rxc3 {[%clk 0:01:12.6]} 23. Rxc3 {[%clk 0:01:31.7]} 23... Rxc3 {[%clk
0:01:12.1]} 24. Bxc3 {[%clk 0:01:32.6]} 24... Nc7 {[%clk 0:01:12.3]} 25. a4
{[%clk 0:01:30.4]} 25... Nb8 {[%clk 0:01:03.4]} 26. Kf1 {[%clk 0:01:23.6]} 26...
Nc6 {[%clk 0:01:03.1]} 27. Ke2 {[%clk 0:01:23.2]} 27... Kf8 {[%clk 0:01:03.5]}
28. Ne1 {[%clk 0:01:14.7]} 28... Ke8 {[%clk 0:01:01.4]} 29. Nd3 {[%clk
0:01:13.9]} 29... Kd7 {[%clk 0:00:53.2]} 30. f4 {[%clk 0:01:12.2]} 30... Na6
{[%clk 0:00:43.2]} 31. Bd2 {[%clk 0:00:55.6]} 31... Nab4 {[%clk 0:00:41.1]} 32.
Bxb4 {[%clk 0:00:50.6]} 32... Bxb4 {[%clk 0:00:37.9]} 33. g4 {[%clk 0:00:47.9]}
33... g6 {[%clk 0:00:32]} 34. h4 {[%clk 0:00:47.1]} 34... h5 {[%clk 0:00:30.6]}
35. gxh5 {[%clk 0:00:32.7]} 35... gxh5 {[%clk 0:00:31.5]} 36. Kf3 {[%clk
0:00:33.4]} 36... Be7 {[%clk 0:00:30.9]} 37. Kg3 {[%clk 0:00:32.6]} 37... Nb4
{[%clk 0:00:18.2]} 38. Nxb4 {[%clk 0:00:25.2]} 38... Bxb4 {[%clk 0:00:19.1]} 39.
Nc1 {[%clk 0:00:26.1]} 39... Bd2 {[%clk 0:00:17.1]} 40. Ne2 {[%clk 0:00:25.4]}
40... Be1+ {[%clk 0:00:14.8]} 41. Kh3 {[%clk 0:00:23.9]} 41... Bd2 {[%clk
0:00:13.2]} 42. Ng3 {[%clk 0:00:22]} 42... Bxf4 {[%clk 0:00:13.1]} 43. Nxh5
{[%clk 0:00:22.8]} 43... Be3 {[%clk 0:00:13.4]} 44. Nf6+ {[%clk 0:00:23.5]}
44... Ke7 {[%clk 0:00:13.4]} 45. h5 {[%clk 0:00:16.1]} 45... Bxd4 {[%clk
0:00:13.3]} 46. Ng4 {[%clk 0:00:14.9]} 46... f5 {[%clk 0:00:06.2]} 47. exf6+
{[%clk 0:00:09.3]} 47... Bxf6 {[%clk 0:00:06.1]} 48. b3 {[%clk 0:00:10]} 48...
Bc3 {[%clk 0:00:04.9]} 49. Kg3 {[%clk 0:00:08.1]} 49... Kf7 {[%clk 0:00:03.4]}
50. Kf4 {[%clk 0:00:07.6]} 50... Kg7 {[%clk 0:00:02.9]} 51. Ke3 {[%clk
0:00:04.8]} 51... e5 {[%clk 0:00:01.8]} 52. Kd3 {[%clk 0:00:04.8]} 52... Ba1
{[%clk 0:00:01.4]} 53. Ne3 {[%clk 0:00:03]} 53... e4+ {[%clk 0:00:01.6]} 54. Kc2
{[%clk 0:00:01.7]} 54... d4 {[%clk 0:00:01.9]} 55. Ng4 {[%clk 0:00:02.2]} 55...
d3+ {[%clk 0:00:01.7]} 56. Kd2 {[%clk 0:00:02.9]} 56... Bd4 {[%clk 0:00:01.6]}
57. b4 {[%clk 0:00:02.5]} 57... a6 {[%clk 0:00:01.6]} 58. b5 {[%clk 0:00:02.6]}
58... a5 {[%clk 0:00:02.1]} 59. Nh2 {[%clk 0:00:02.1]} 59... Kf6 {[%clk
0:00:02.2]} 60. Ng4+ {[%clk 0:00:02.5]} 60... Kg5 {[%clk 0:00:02.7]} 61. Nh2
{[%clk 0:00:02.5]} 61... Kxh5 {[%clk 0:00:02.8]} 62. Nf1 {[%clk 0:00:02.7]}
62... Kg5 {[%clk 0:00:03.3]} 63. Ng3 {[%clk 0:00:01.9]} 63... Kf4 {[%clk
0:00:03.6]} 64. Nh5+ {[%clk 0:00:02.5]} 64... Kf3 {[%clk 0:00:04]} 0-1

[Event "Early-Titled-Tuesday-Blitz-September-05-2023"]
[Site "Chess.com"]
[Date "2023.09.05"]
[Round "6"]
[White "platy3"]
[Black "Ali_rastbod"]
[Result "0-1"]
[WhiteElo "2909"]
[BlackElo "2700"]
[TimeControl "180+1"]
[EndTime "9:07:39 PDT"]
[Termination "Ali_rastbod won by resignation"]

1. e4 {[%clk 0:03:00.9]} 1... c6 {[%clk 0:02:59]} 2. Nf3 {[%clk 0:03:00]} 2...
d5 {[%clk 0:02:59.2]} 3. Nc3 {[%clk 0:03:00.9]} 3... Nf6 {[%clk 0:02:56.3]} 4.
e5 {[%clk 0:03:00.1]} 4... Ne4 {[%clk 0:02:56.9]} 5. Ne2 {[%clk 0:03:00.8]} 5...
Qb6 {[%clk 0:02:57.5]} 6. d4 {[%clk 0:03:01.5]} 6... c5 {[%clk 0:02:58.2]} 7. c3
{[%clk 0:02:40.3]} 7... cxd4 {[%clk 0:02:56.6]} 8. Nexd4 {[%clk 0:02:31.8]} 8...
Nc6 {[%clk 0:02:56.1]} 9. h3 {[%clk 0:02:25.6]} 9... g6 {[%clk 0:02:43.8]} 10.
Qb3 {[%clk 0:02:09.5]} 10... Qxb3 {[%clk 0:01:54.6]} 11. axb3 {[%clk 0:02:10.4]}
11... Bg7 {[%clk 0:01:55]} 12. Bb5 {[%clk 0:01:58.4]} 12... Bd7 {[%clk
0:01:51.7]} 13. Bf4 {[%clk 0:01:55]} 13... O-O {[%clk 0:01:40.9]} 14. O-O {[%clk
0:01:54.8]} 14... e6 {[%clk 0:01:29.2]} 15. b4 {[%clk 0:01:40.9]} 15... Rfc8
{[%clk 0:01:19.1]} 16. Rfd1 {[%clk 0:01:39.8]} 16... a6 {[%clk 0:01:06.7]} 17.
Bxc6 {[%clk 0:01:36.4]} 17... Bxc6 {[%clk 0:01:04.4]} 18. Ra5 {[%clk 0:01:34.1]}
18... b6 {[%clk 0:00:43.1]} 19. Ra2 {[%clk 0:01:29.6]} 19... Bb7 {[%clk
0:00:42.4]} 20. Rda1 {[%clk 0:01:28.3]} 20... Re8 {[%clk 0:00:19.5]} 21. Be3
{[%clk 0:01:26.8]} 21... f6 {[%clk 0:00:16.1]} 22. exf6 {[%clk 0:01:26.4]} 22...
Bxf6 {[%clk 0:00:16.4]} 23. Nb3 {[%clk 0:01:27.2]} 23... b5 {[%clk 0:00:15.9]}
24. Na5 {[%clk 0:01:27.3]} 24... Bc8 {[%clk 0:00:16.3]} 25. Nc6 {[%clk
0:01:27.3]} 25... e5 {[%clk 0:00:13.8]} 26. Ra3 {[%clk 0:01:11.5]} 26... Bb7
{[%clk 0:00:13]} 27. Na5 {[%clk 0:01:09.5]} 27... Bc8 {[%clk 0:00:13.7]} 28. Nb3
{[%clk 0:01:09.7]} 28... Kg7 {[%clk 0:00:12.2]} 29. Rd1 {[%clk 0:01:04.5]} 29...
Be6 {[%clk 0:00:11.1]} 30. Nc5 {[%clk 0:00:58.5]} 30... Nxc5 {[%clk 0:00:10.9]}
31. Bxc5 {[%clk 0:00:59.4]} 31... g5 {[%clk 0:00:10.1]} 32. Re1 {[%clk
0:00:57.2]} 32... Bf7 {[%clk 0:00:08.4]} 33. Rea1 {[%clk 0:00:57.1]} 33... Re6
{[%clk 0:00:09]} 34. Ne1 {[%clk 0:00:53.6]} 34... d4 {[%clk 0:00:08.8]} 35. Nc2
{[%clk 0:00:52.6]} 35... d3 {[%clk 0:00:08.3]} 36. Ne3 {[%clk 0:00:52.6]} 36...
e4 {[%clk 0:00:08.7]} 37. Ng4 {[%clk 0:00:47.7]} 37... h5 {[%clk 0:00:06.2]} 38.
Nxf6 {[%clk 0:00:47.9]} 38... Kxf6 {[%clk 0:00:07.1]} 39. Be3 {[%clk 0:00:47.7]}
39... Kg6 {[%clk 0:00:07.2]} 40. Ra5 {[%clk 0:00:48.1]} 40... Be8 {[%clk
0:00:06.1]} 41. b3 {[%clk 0:00:45.6]} 41... Rc6 {[%clk 0:00:04.3]} 42. Bd2
{[%clk 0:00:46.1]} 42... Re6 {[%clk 0:00:04.3]} 43. c4 {[%clk 0:00:45]} 43...
bxc4 {[%clk 0:00:04.4]} 44. bxc4 {[%clk 0:00:45.9]} 44... Rc8 {[%clk 0:00:04.1]}
45. Rxa6 {[%clk 0:00:45.9]} 45... Rxa6 {[%clk 0:00:03.7]} 46. Rxa6+ {[%clk
0:00:46.8]} 46... Kf7 {[%clk 0:00:04.3]} 47. c5 {[%clk 0:00:46.7]} 47... Bb5
{[%clk 0:00:04.6]} 48. Rb6 {[%clk 0:00:46]} 48... Bc4 {[%clk 0:00:03.5]} 49. c6
{[%clk 0:00:45.1]} 49... Ke6 {[%clk 0:00:03.4]} 50. b5 {[%clk 0:00:42.9]} 50...
Kd5 {[%clk 0:00:03.9]} 51. Rb7 {[%clk 0:00:39.9]} 51... Kc5 {[%clk 0:00:03.3]}
52. Be3+ {[%clk 0:00:38.3]} 52... Kb4 {[%clk 0:00:03.9]} 53. b6 {[%clk
0:00:19.1]} 53... Rxc6 {[%clk 0:00:03]} 54. Rb8 {[%clk 0:00:19.9]} 54... Ba6
{[%clk 0:00:03.2]} 55. b7 {[%clk 0:00:19.8]} 55... Rc7 {[%clk 0:00:03.2]} 56.
Bd2+ {[%clk 0:00:14.6]} 56... Kb3 {[%clk 0:00:03.1]} 57. Bxg5 {[%clk 0:00:15]}
57... Rxb7 {[%clk 0:00:03]} 58. Re8 {[%clk 0:00:14.7]} 58... Rb4 {[%clk
0:00:03.2]} 59. Kh2 {[%clk 0:00:13.2]} 59... Bb5 {[%clk 0:00:03.4]} 60. Re7
{[%clk 0:00:12.6]} 60... Kc2 {[%clk 0:00:03.6]} 61. Rc7+ {[%clk 0:00:12.2]}
61... Rc4 {[%clk 0:00:03.9]} 62. Ra7 {[%clk 0:00:10.4]} 62... Ba4 {[%clk
0:00:04.2]} 63. Kg3 {[%clk 0:00:08.1]} 63... d2 {[%clk 0:00:04.7]} 64. Bxd2
{[%clk 0:00:07.3]} 64... Kxd2 {[%clk 0:00:05.6]} 65. Ra5 {[%clk 0:00:07.2]}
65... Ke2 {[%clk 0:00:04.6]} 66. Rxh5 {[%clk 0:00:05.4]} 66... Rc3+ {[%clk
0:00:05.2]} 67. Kf4 {[%clk 0:00:06.1]} 67... Bc2 {[%clk 0:00:04.4]} 68. g4
{[%clk 0:00:03.9]} 68... Kxf2 {[%clk 0:00:04.6]} 69. g5 {[%clk 0:00:03.7]} 69...
e3 {[%clk 0:00:04.8]} 70. g6 {[%clk 0:00:04.2]} 70... Bxg6 {[%clk 0:00:04.3]}
71. Rg5 {[%clk 0:00:04.3]} 71... Bb1 {[%clk 0:00:04]} 72. Rb5 {[%clk 0:00:03.7]}
72... Bc2 {[%clk 0:00:04.4]} 73. Rc5 {[%clk 0:00:03.8]} 73... Rxc5 {[%clk
0:00:04.2]} 0-1

[Event "Early-Titled-Tuesday-Blitz-September-05-2023"]
[Site "Chess.com"]
[Date "2023.09.05"]
[Round "6"]
[White "LeoWin2012"]
[Black "Mariia89"]
[Result "1/2-1/2"]
[WhiteElo "2221"]
[BlackElo "1970"]
[TimeControl "180+1"]
[EndTime "9:07:41 PDT"]
[Termination "Game drawn - insufficient material"]

1. e4 {[%clk 0:03:00.9]} 1... c6 {[%clk 0:03:00.3]} 2. d4 {[%clk 0:03:00.3]}
2... d5 {[%clk 0:03:01.2]} 3. Nc3 {[%clk 0:02:57.5]} 3... dxe4 {[%clk
0:02:59.1]} 4. Nxe4 {[%clk 0:02:58.4]} 4... Nf6 {[%clk 0:02:59.5]} 5. Nxf6+
{[%clk 0:02:57.5]} 5... exf6 {[%clk 0:03:00.2]} 6. Nf3 {[%clk 0:02:55.5]} 6...
Be7 {[%clk 0:02:57.9]} 7. Bd3 {[%clk 0:02:53.8]} 7... Na6 {[%clk 0:02:57.6]} 8.
c3 {[%clk 0:02:53]} 8... Nc7 {[%clk 0:02:57.5]} 9. O-O {[%clk 0:02:52.6]} 9...
O-O {[%clk 0:02:57.3]} 10. Re1 {[%clk 0:02:52.6]} 10... Bg4 {[%clk 0:02:53.6]}
11. h3 {[%clk 0:02:50.4]} 11... Bh5 {[%clk 0:02:52.2]} 12. Bf4 {[%clk
0:02:42.2]} 12... Nd5 {[%clk 0:02:51]} 13. Bg3 {[%clk 0:02:42.2]} 13... Re8
{[%clk 0:02:45]} 14. Qc2 {[%clk 0:02:36.7]} 14... Bg6 {[%clk 0:02:37.6]} 15. Nh4
{[%clk 0:02:30.2]} 15... Bf8 {[%clk 0:02:07.5]} 16. Nf5 {[%clk 0:02:17.6]} 16...
Qd7 {[%clk 0:01:49.3]} 17. Nh4 {[%clk 0:01:49.1]} 17... Bd6 {[%clk 0:01:39.3]}
18. Nxg6 {[%clk 0:01:45.2]} 18... hxg6 {[%clk 0:01:22.7]} 19. Bxd6 {[%clk
0:01:40.3]} 19... Qxd6 {[%clk 0:01:21.8]} 20. Qd2 {[%clk 0:01:32.9]} 20... Rad8
{[%clk 0:01:17.7]} 21. Rxe8+ {[%clk 0:01:18.9]} 21... Rxe8 {[%clk 0:01:14.3]}
22. Re1 {[%clk 0:01:19.8]} 22... Qd7 {[%clk 0:01:10.7]} 23. Rxe8+ {[%clk
0:00:48.1]} 23... Qxe8 {[%clk 0:01:09.3]} 24. Qe2 {[%clk 0:00:49]} 24... Qxe2
{[%clk 0:01:06]} 25. Bxe2 {[%clk 0:00:49.9]} 25... Nf4 {[%clk 0:01:06.6]} 26.
Bc4 {[%clk 0:00:46.1]} 26... Kf8 {[%clk 0:01:05]} 27. Kh2 {[%clk 0:00:42.6]}
27... Ke7 {[%clk 0:00:58.5]} 28. g3 {[%clk 0:00:42.5]} 28... Ne6 {[%clk
0:00:46.4]} 29. Kg2 {[%clk 0:00:41.9]} 29... Kd6 {[%clk 0:00:46.1]} 30. f4
{[%clk 0:00:30.1]} 30... f5 {[%clk 0:00:42.1]} 31. Kf3 {[%clk 0:00:28.8]} 31...
Ke7 {[%clk 0:00:39.6]} 32. d5 {[%clk 0:00:26.5]} 32... cxd5 {[%clk 0:00:38.6]}
33. Bxd5 {[%clk 0:00:27.4]} 33... b6 {[%clk 0:00:38.2]} 34. Ke3 {[%clk
0:00:24.8]} 34... Nc7 {[%clk 0:00:36]} 35. Bc4 {[%clk 0:00:22.5]} 35... Kf6
{[%clk 0:00:35.4]} 36. Kd4 {[%clk 0:00:21.2]} 36... Ke7 {[%clk 0:00:25.9]} 37.
a4 {[%clk 0:00:19.4]} 37... Kd6 {[%clk 0:00:24.4]} 38. b4 {[%clk 0:00:19.7]}
38... f6 {[%clk 0:00:23.6]} 39. Bf7 {[%clk 0:00:19.4]} 39... g5 {[%clk
0:00:22.9]} 40. Bg6 {[%clk 0:00:18.7]} 40... Ne6+ {[%clk 0:00:22.8]} 41. Ke3
{[%clk 0:00:17.6]} 41... gxf4+ {[%clk 0:00:19.5]} 42. gxf4 {[%clk 0:00:18.5]}
42... Nc7 {[%clk 0:00:17.4]} 43. Bxf5 {[%clk 0:00:18.8]} 43... Nd5+ {[%clk
0:00:18.1]} 44. Kd4 {[%clk 0:00:18.7]} 44... Nxf4 {[%clk 0:00:18.6]} 45. a5
{[%clk 0:00:18.8]} 45... Nd5 {[%clk 0:00:15]} 46. axb6 {[%clk 0:00:17.6]} 46...
axb6 {[%clk 0:00:10.4]} 47. Be4 {[%clk 0:00:17.7]} 47... Ne7 {[%clk 0:00:09.7]}
48. c4 {[%clk 0:00:17.2]} 48... f5 {[%clk 0:00:10]} 49. Bf3 {[%clk 0:00:17]}
49... g5 {[%clk 0:00:10.5]} 50. c5+ {[%clk 0:00:14.7]} 50... bxc5+ {[%clk
0:00:11.1]} 51. bxc5+ {[%clk 0:00:15.6]} 51... Ke6 {[%clk 0:00:10.6]} 52. Kc4
{[%clk 0:00:14.3]} 52... Ke5 {[%clk 0:00:10.3]} 53. c6 {[%clk 0:00:12.1]} 53...
Kf4 {[%clk 0:00:08.7]} 54. Bh1 {[%clk 0:00:10.3]} 54... g4 {[%clk 0:00:08.8]}
55. hxg4 {[%clk 0:00:10.1]} 55... fxg4 {[%clk 0:00:07.4]} 56. c7 {[%clk
0:00:10.4]} 56... g3 {[%clk 0:00:07.7]} 57. Kc5 {[%clk 0:00:09]} 57... Ke3
{[%clk 0:00:07]} 58. Kd6 {[%clk 0:00:09.2]} 58... Nc8+ {[%clk 0:00:07.5]} 59.
Kd7 {[%clk 0:00:09.2]} 59... Nb6+ {[%clk 0:00:08]} 60. Kc6 {[%clk 0:00:09.4]}
60... Nc8 {[%clk 0:00:08.7]} 61. Kb7 {[%clk 0:00:08.8]} 61... Nd6+ {[%clk
0:00:08.9]} 62. Kb8 {[%clk 0:00:08.8]} 62... Kf2 {[%clk 0:00:08.8]} 63. Ka7
{[%clk 0:00:06.8]} 63... g2 {[%clk 0:00:08.2]} 64. Bxg2 {[%clk 0:00:07.3]} 64...
Kxg2 {[%clk 0:00:08.3]} 65. Kb6 {[%clk 0:00:08.2]} 65... Kf3 {[%clk 0:00:08.8]}
66. Kc6 {[%clk 0:00:08.7]} 66... Nc8 {[%clk 0:00:08.9]} 67. Kd7 {[%clk
0:00:09.1]} 67... Nb6+ {[%clk 0:00:09.4]} 68. Kc6 {[%clk 0:00:09.7]} 68... Nc8
{[%clk 0:00:09.7]} 69. Kb7 {[%clk 0:00:08.5]} 69... Nd6+ {[%clk 0:00:09.7]} 70.
Kb8 {[%clk 0:00:09.1]} 70... Ke4 {[%clk 0:00:09.8]} 71. c8=Q {[%clk 0:00:10]}
71... Nxc8 {[%clk 0:00:10]} 1/2-1/2